lending/lending_fUSD_20240110
["ID","MTS","AMOUNT","RATE_DAILY","PERIOD"]
[311080583,1704899466715,-500.0,0.00030136,2]
[311080584,1704899466725,-500.0,0.00030136,2]
[311080585,1704899466735,-500.0,0.00030136,2]
[311080586,1704899466745,-500.0,0.00030136,2]
[311080587,1704899466755,-500.0,0.00030136,2]
[311080588,1704899466765,-517.43,0.00030136,2]
[311080589,1704899466775,-500.0,0.00030136,2]
[311080590,1704899466785,-500.0,0.00030136,2]
[311080591,1704899466795,-500.0,0.00030136,2]
[311080592,1704899466804,-500.0,0.00030136,2]
[311080593,1704899466814,-500.0,0.00030136,2]
[311080594,1704899466828,-500.0,0.00030136,2]
[311080595,1704899466837,-500.0,0.00030136,2]
[311080596,1704899466846,-500.0,0.00030136,2]
[311080597,1704899466855,-500.0,0.00030136,2]
[311080598,1704899466864,-504.18318355,0.00030136,2]
[311080599,1704899466873,-500.0,0.00030136,2]
[311080600,1704899466882,-500.0,0.00030136,2]
[311080601,1704899466894,-500.0,0.00030136,2]
[311080602,1704899466904,-500.0,0.00030136,2]
[311080603,1704899466917,-500.0,0.00030136,2]
[311080604,1704899466927,-500.0,0.00030136,2]
[311080605,1704899466937,-500.0,0.00030136,2]
[311080606,1704899466947,-500.0,0.00030136,2]
[311080607,1704899466957,-500.0,0.00030136,2]
[311080608,1704899466966,-500.0,0.00030136,2]
[311080609,1704899466976,-520.79128432,0.00030136,2]
[311080610,1704899466986,-500.0,0.00030136,2]
[311080611,1704899466998,-500.0,0.00030136,2]
[311080612,1704899467007,-500.0,0.00030136,2]
[311080613,1704899467017,-500.0,0.00030136,2]
[311080614,1704899467026,-500.0,0.00030136,2]
[311080615,1704899467036,-500.0,0.00030136,2]
[311080616,1704899467045,-500.0,0.00030136,2]
[311080617,1704899467055,-500.0,0.00030136,2]
[311080618,1704899467065,-500.0,0.00030136,2]
[311080619,1704899467077,-500.0,0.00030136,2]
[311080620,1704899467087,-500.0,0.00030136,2]
[311080621,1704899467096,-864.12,0.00030136,2]
[311080622,1704899467106,-500.0,0.00030136,2]
[311080623,1704899467115,-500.0,0.00030136,2]
[311080624,1704899467124,-832.86,0.00030136,2]
[311080625,1704899467133,-500.0,0.00030136,2]
[311080626,1704899467142,-500.0,0.00030136,2]
[311080627,1704899467151,-1917.55,0.00030136,2]
[311080628,1704899467161,-500.0,0.00030136,2]
[311080629,1704899467170,-500.0,0.00030136,2]
[311080630,1704899467178,-500.0,0.00030136,2]
[311080631,1704899467187,-500.0,0.00030136,2]
[311080632,1704899467196,-528.68,0.00030136,2]
[311080633,1704899467205,-1061.96,0.00030136,2]
[311080634,1704899467214,-500.0,0.00030136,2]
[311080635,1704899467224,-500.0,0.00030136,2]
[311080636,1704899467233,-500.0,0.00030136,2]
[311080637,1704899467243,-500.0,0.00030136,2]
[311080638,1704899467253,-500.0,0.00030136,2]
[311080639,1704899467264,-500.0,0.00030136,2]
[311080640,1704899467274,-500.0,0.00030136,2]
[311080641,1704899467284,-500.0,0.00030136,2]
[311080642,1704899467294,-500.0,0.00030136,2]
[311080643,1704899467304,-500.0,0.00030136,2]
[311080644,1704899467314,-500.0,0.00030136,2]
[311080645,1704899467327,-500.0,0.00030136,2]
[311080646,1704899467338,-500.0,0.00030136,2]
[311080647,1704899467348,-500.0,0.00030136,2]
[311080648,1704899467358,-500.0,0.00030136,2]
[311080649,1704899467368,-500.0,0.00030136,2]
[311080650,1704899467378,-500.0,0.00030136,2]
[311080651,1704899467387,-1189.4,0.00030136,2]
[311080652,1704899467397,-500.0,0.00030136,2]
[311080653,1704899467407,-500.0,0.00030136,2]
[311080654,1704899467417,-500.0,0.00030136,2]
[311080655,1704899467427,-500.0,0.00030136,2]
[311080656,1704899467437,-855.53,0.00030136,2]
[311080657,1704899467447,-500.0,0.00030136,2]
[311080658,1704899467456,-500.0,0.00030136,2]
[311080659,1704899467466,-500.0,0.00030136,2]
[311080660,1704899467476,-500.0,0.00030136,2]
[311080661,1704899467487,-500.0,0.00030136,2]
[311080662,1704899467496,-3025.87,0.00030136,2]
[311080663,1704899467506,-14035.43,0.00030136,2]
[311080664,1704899467516,-500.0,0.00030136,2]
[311080665,1704899467525,-500.0,0.00030136,2]
[311080666,1704899467536,-500.0,0.00030136,2]
[311080667,1704899467546,-500.0,0.00030136,2]
[311080668,1704899467557,-500.0,0.00030136,2]
[311080669,1704899467567,-973.78,0.00030136,2]
[311080670,1704899467579,-500.0,0.00030136,2]
[311080671,1704899467588,-500.0,0.00030136,2]
[311080672,1704899467597,-500.0,0.00030136,2]
[311080673,1704899467606,-500.0,0.00030136,2]
[311080674,1704899467616,-9446.83,0.00030136,2]
[311080675,1704899467625,-5187.85,0.00030136,2]
[311080676,1704899467635,-500.0,0.00030136,2]
[311080677,1704899467645,-500.0,0.00030136,2]
[311080678,1704899467655,-4679.81,0.00030136,2]
[311080679,1704899467665,-500.0,0.00030136,2]
[311080680,1704899467674,-500.0,0.00030136,2]
[311080681,1704899467684,-762.81,0.00030136,2]
[311080682,1704899467693,-753.15,0.00030136,2]
[311080683,1704899467707,-500.0,0.00030136,2]
[311080684,1704899467716,-5160.25,0.00030136,2]
[311080685,1704899467725,-500.0,0.00030136,2]
[311080687,1704899467735,-500.0,0.00030136,2]
[311080688,1704899467744,-500.0,0.00030136,2]
[311080689,1704899467754,-500.0,0.00030136,2]
[311080690,1704899467764,-500.0,0.00030136,2]
[311080691,1704899467774,-738.39,0.00030136,2]
[311080692,1704899467783,-500.0,0.00030136,2]
[311080693,1704899467793,-500.0,0.00030136,2]
[311080694,1704899467803,-4105.9,0.00030136,2]
[311080695,1704899467812,-739.32,0.00030136,2]
[311080696,1704899467824,-5519.4,0.00030136,2]
[311080697,1704899467833,-500.0,0.00030136,2]
[311080698,1704899467842,-1280.23,0.00030136,2]
[311080699,1704899467851,-838.49,0.00030136,2]
[311080700,1704899467861,-500.0,0.00030136,2]
[311080701,1704899467870,-2711.72,0.00030136,2]
[311080702,1704899467880,-500.0,0.00030136,2]
[311080703,1704899467890,-500.0,0.00030136,2]
[311080704,1704899467899,-299.0,0.00030136,2]
[311080705,1704899467909,-500.0,0.00030136,2]
[311080706,1704899467919,-500.0,0.00030136,2]
[311080707,1704899467928,-500.0,0.00030136,2]
[311080708,1704899467938,-1044.31,0.00030136,2]
[311080709,1704899467947,-551.13,0.00030136,2]
[311080710,1704899467956,-500.0,0.00030136,2]
[311080711,1704899467966,-1137.84,0.00030136,2]
[311080712,1704899467975,-500.0,0.00030136,2]
[311080713,1704899467985,-500.0,0.00030136,2]
[311080714,1704899467996,-1704.72,0.00030136,2]
[311080715,1704899468005,-500.0,0.00030136,2]
[311080716,1704899468015,-2455.76,0.00030136,2]
[311080717,1704899468025,-500.0,0.00030136,2]
[311080718,1704899468034,-573.93,0.00030136,2]
[311080719,1704899468044,-500.0,0.00030136,2]
[311080720,1704899468054,-500.0,0.00030136,2]
[311080721,1704899468064,-500.0,0.00030136,2]
[311080722,1704899468076,-500.0,0.00030136,2]
[311080723,1704899468086,-500.0,0.00030136,2]
[311080724,1704899468096,-500.0,0.00030136,2]
[311080725,1704899468105,-500.0,0.00030136,2]
[311080726,1704899468114,-500.0,0.00030136,2]
[311080727,1704899468124,-2863.48,0.00030136,2]
[311080728,1704899468134,-1657.02,0.00030136,2]
[311080729,1704899468144,-500.0,0.00030136,2]
[311080730,1704899468154,-500.0,0.00030136,2]
[311080731,1704899468165,-1846.07,0.00030136,2]
[311080732,1704899468175,-500.0,0.00030136,2]
[311080733,1704899468185,-500.0,0.00030136,2]
[311080734,1704899468195,-1372.37,0.00030136,2]
[311080735,1704899468205,-500.0,0.00030136,2]
[311080736,1704899468216,-501.81,0.00030136,2]
[311080737,1704899468226,-878.93,0.00030136,2]
[311080738,1704899468236,-542.89,0.00030136,2]
[311080739,1704899468246,-1876.96,0.00030136,2]
[311080740,1704899468256,-500.0,0.00030136,2]
[311080741,1704899468266,-670.99,0.00030136,2]
[311080742,1704899468276,-1458.78,0.00030136,2]
[311080743,1704899468286,-679.4,0.00030136,2]
[311080744,1704899468295,-500.0,0.00030136,2]
[311080745,1704899468305,-638.87,0.00030136,2]
[311080746,1704899468315,-11676.87,0.00030136,2]
[311080747,1704899468330,-500.0,0.00030136,2]
[311080748,1704899468341,-500.0,0.00030136,2]
[311080749,1704899468351,-500.0,0.00030136,2]
[311080750,1704899468361,-648.09,0.00030136,2]
[311080751,1704899468370,-1372.2,0.00030136,2]
[311080752,1704899468380,-500.0,0.00030136,2]
[311080753,1704899468390,-500.0,0.00030136,2]
[311080754,1704899468400,-500.0,0.00030136,2]
[311080755,1704899468410,-1243.38,0.00030136,2]
[311080756,1704899468419,-500.0,0.00030136,2]
[311080757,1704899468429,-500.0,0.00030136,2]
[311080758,1704899468438,-500.0,0.00030136,2]
[311080759,1704899468448,-500.0,0.00030136,2]
[311080760,1704899468457,-523.89,0.00030136,2]
[311080761,1704899468467,-3311.5,0.00030136,2]
[311080762,1704899468478,-500.0,0.00030136,2]
[311080763,1704899468487,-1276.1,0.00030136,2]
[311080764,1704899468497,-1643.29,0.00030136,2]
[311080765,1704899468507,-500.0,0.00030136,2]
[311080766,1704899468516,-3471.19,0.00030136,2]
[311080767,1704899468525,-500.0,0.00030136,2]
[311080768,1704899468535,-1124.09,0.00030136,2]
[311080769,1704899468544,-793.02,0.00030136,2]
[311080770,1704899468554,-500.0,0.00030136,2]
[311080771,1704899468563,-500.0,0.00030136,2]
[311080772,1704899468574,-1094.09,0.00030136,2]
[311080773,1704899468584,-3741.32,0.00030136,2]
[311080774,1704899468595,-1365.53622141,0.00030136,7]
[311080775,1704899468604,-731.83,0.00030136,2]
[311080776,1704899468614,-5381.14,0.00030136,2]
[311080777,1704899468624,-500.0,0.00030136,2]
[311080778,1704899468633,-818.1,0.00030136,2]
[311080779,1704899468643,-1531.68,0.00030136,2]
[311080780,1704899468652,-500.0,0.00030136,2]
[311080781,1704899468662,-423.06746059,0.00030136,2]
[311080782,1704899468671,-1274.61,0.00030136,2]
[311080783,1704899468681,-500.0,0.00030136,2]
[311080784,1704899468691,-919.19,0.00030136,2]
[311080785,1704899468709,-733.62,0.00030136,2]
[311080786,1704899468719,-500.0,0.00030136,2]
[311080787,1704899468729,-500.0,0.00030136,2]
[311080788,1704899468738,-500.0,0.00030136,2]
[311080789,1704899468748,-500.0,0.00030136,2]
[311080790,1704899468758,-2072.84,0.00030136,2]
[311080791,1704899468767,-500.0,0.00030136,2]
[311080792,1704899468777,-500.0,0.00030136,2]
[311080793,1704899468788,-500.0,0.00030136,2]
[311080794,1704899468798,-500.0,0.00030136,2]
[311080795,1704899468809,-500.0,0.00030136,2]
[311080796,1704899468820,-650.59,0.00030136,2]
[311080797,1704899468832,-500.0,0.00030136,2]
[311080798,1704899468841,-989.56,0.00030136,2]
[311080799,1704899468851,-1481.78,0.00030136,2]
[311080800,1704899468860,-500.0,0.00030136,2]
[311080801,1704899468870,-500.0,0.00030136,2]
[311080802,1704899468879,-500.0,0.00030136,2]
[311080803,1704899468889,-500.0,0.00030136,2]
[311080804,1704899468900,-500.0,0.00030136,2]
[311080805,1704899468916,-509.47,0.00030136,2]
[311080806,1704899468926,-500.0,0.00030136,2]
[311080807,1704899468935,-500.0,0.00030136,2]
[311080808,1704899468946,-6289.03,0.00030136,2]
[311080809,1704899468957,-515.71,0.00030136,2]
[311080810,1704899468966,-819.58,0.00030136,2]
[311080811,1704899468976,-1875.44,0.00030136,2]
[311080812,1704899468987,-521.29,0.00030136,2]
[311080813,1704899468997,-500.0,0.00030136,2]
[311080814,1704899469006,-805.22,0.00030136,2]
[311080815,1704899469015,-500.0,0.00030136,2]
[311080816,1704899469025,-500.0,0.00030136,2]
[311080817,1704899469034,-1558.12,0.00030136,2]
[311080818,1704899469044,-840.19,0.00030136,2]
[311080819,1704899469053,-500.0,0.00030136,2]
[311080820,1704899469062,-784.12,0.00030136,2]
[311080821,1704899469074,-656.58,0.00030136,2]
[311080822,1704899469084,-500.0,0.00030136,2]
[311080823,1704899469094,-500.0,0.00030136,2]
[311080824,1704899469103,-500.0,0.00030136,2]
[311080825,1704899469113,-500.0,0.00030136,2]
[311080826,1704899469123,-500.0,0.00030136,2]
[311080827,1704899469133,-1222.92,0.00030136,2]
[311080828,1704899469142,-561.56,0.00030136,2]
[311080829,1704899469154,-500.0,0.00030136,2]
[311080830,1704899469163,-500.0,0.00030136,2]
[311080831,1704899469173,-500.0,0.00030136,2]
[311080832,1704899469183,-636.18,0.00030136,2]
[311080833,1704899469193,-867.87,0.00030136,2]
[311080834,1704899469203,-500.0,0.00030136,2]
[311080835,1704899469213,-500.0,0.00030136,2]
[311080836,1704899469223,-500.0,0.00030136,2]
[311080837,1704899469233,-1743.0,0.00030136,2]
[311080838,1704899469244,-1439.95,0.00030136,2]
[311080839,1704899469254,-500.0,0.00030136,2]
[311080840,1704899469265,-500.0,0.00030136,2]
[311080841,1704899469274,-500.0,0.00030136,2]
[311080842,1704899469284,-785.35,0.00030136,2]
[311080843,1704899469294,-369.83039779,0.00030136,2]
[311080844,1704899469304,-790.76,0.00030136,2]
[311080845,1704899469314,-500.0,0.00030136,2]
[311080846,1704899469326,-500.0,0.00030136,2]
[311080847,1704899469336,-4176.73,0.00030136,2]
[311080848,1704899469346,-500.0,0.00030136,2]
[311080849,1704899469356,-500.0,0.00030136,2]
[311080850,1704899469366,-596.32,0.00030136,2]
[311080851,1704899469376,-500.0,0.00030136,2]
[311080852,1704899469386,-588.0,0.00030136,2]
[311080853,1704899469396,-500.0,0.00030136,2]
[311080854,1704899469406,-1629.67,0.00030136,2]
[311080855,1704899469416,-8748.7,0.00030136,2]
[311080856,1704899469426,-500.0,0.00030136,2]
[311080857,1704899469436,-500.0,0.00030136,2]
[311080858,1704899469446,-9935.76,0.00030136,2]
[311080859,1704899469456,-1788.8,0.00030136,2]
[311080860,1704899469466,-1765.13,0.00030136,2]
[311080861,1704899469715,-955.19,0.00030136,2]
[311080862,1704899469725,-857.54,0.00030136,2]
[311080863,1704899469735,-500.0,0.00030136,2]
[311080864,1704899469747,-500.0,0.00030136,2]
[311080865,1704899469757,-500.0,0.00030136,2]
[311080866,1704899469766,-500.0,0.00030136,2]
[311080867,1704899469775,-500.0,0.00030136,2]
[311080868,1704899469785,-597.54,0.00030136,2]
[311080869,1704899469795,-500.0,0.00030136,2]
[311080870,1704899469804,-500.0,0.00030136,2]
[311080871,1704899469814,-500.0,0.00030136,2]
[311080872,1704899469826,-500.0,0.00030136,2]
[311080873,1704899469836,-500.0,0.00030136,2]
[311080874,1704899469846,-919.79,0.00030136,2]
[311080875,1704899469855,-1142.30453937,0.00030136,4]
[311080876,1704899469865,-1658.36,0.00030136,2]
[311080877,1704899469875,-500.0,0.00030136,2]
[311080878,1704899469885,-500.0,0.00030136,2]
[311080879,1704899469894,-695.5,0.00030136,2]
[311080880,1704899469904,-2663.91,0.00030136,2]
[311080881,1704899469914,-2931.73,0.00030136,2]
[311080882,1704899469924,-781.74,0.00030136,2]
[311080883,1704899469933,-1454.11,0.00030136,2]
[311080884,1704899469943,-938.65,0.00030136,2]
[311080885,1704899469952,-1025.5,0.00030136,2]
[311080886,1704899469961,-500.0,0.00030136,2]
[311080887,1704899469972,-500.0,0.00030136,2]
[311080888,1704899469984,-3524.81,0.00030136,2]
[311080889,1704899469993,-500.0,0.00030136,2]
[311080890,1704899470002,-500.0,0.00030136,2]
[311080891,1704899470012,-904.18,0.00030136,2]
[311080892,1704899470021,-986.03,0.00030136,2]
[311080893,1704899470030,-672.63,0.00030136,2]
[311080894,1704899470039,-707.63,0.00030136,2]
[311080895,1704899470049,-500.0,0.00030136,2]
[311080896,1704899470058,-500.0,0.00030136,2]
[311080897,1704899470067,-500.0,0.00030136,2]
[311080898,1704899470080,-1447.45,0.00030136,2]
[311080899,1704899470090,-963.94,0.00030136,2]
[311080900,1704899470100,-500.0,0.00030136,2]
[311080901,1704899470109,-500.0,0.00030136,2]
[311080902,1704899470119,-500.0,0.00030136,2]
[311080903,1704899470128,-1691.37,0.00030136,2]
[311080904,1704899470137,-500.0,0.00030136,2]
[311080905,1704899470147,-1091.65,0.00030136,2]
[311080906,1704899470156,-1013.88,0.00030136,2]
[311080907,1704899470166,-500.0,0.00030136,2]
[311080908,1704899470175,-2559.48,0.00030136,2]
[311080909,1704899470185,-1161.4,0.00030136,2]
[311080910,1704899470194,-157.81374,0.00030136,2]
[311080911,1704899470205,-5302.36,0.00030136,2]
[311080912,1704899470214,-500.0,0.00030136,2]
[311080913,1704899470223,-500.43361903,0.00030136,2]
[311080914,1704899470233,-724.07,0.00030136,2]
[311080915,1704899470242,-500.0,0.00030136,2]
[311080916,1704899470251,-2202.91,0.00030136,2]
[311080917,1704899470261,-576.92,0.00030136,2]
[311080918,1704899470270,-915.24,0.00030136,2]
[311080919,1704899470280,-500.0,0.00030136,2]
[311080920,1704899470290,-500.0,0.00030136,2]
[311080921,1704899470300,-500.0,0.00030136,2]
[311080922,1704899470310,-500.0,0.00030136,2]
[311080923,1704899470320,-569.38,0.00030136,2]
[311080924,1704899470333,-500.0,0.00030136,2]
[311080925,1704899470343,-500.0,0.00030136,2]
[311080926,1704899470352,-500.0,0.00030136,2]
[311080927,1704899470361,-500.0,0.00030136,2]
[311080928,1704899470371,-500.0,0.00030136,2]
[311080929,1704899470380,-682.63,0.00030136,2]
[311080930,1704899470390,-897.7,0.00030136,2]
[311080931,1704899470400,-1244.11,0.00030136,2]
[311080932,1704899470409,-500.0,0.00030136,2]
[311080933,1704899470419,-1589.55,0.00030136,2]
[311080934,1704899470428,-250.0,0.00030136,2]
[311080935,1704899470438,-1115.3,0.00030136,2]
[311080936,1704899470448,-500.0,0.00030136,2]
[311080937,1704899470457,-500.0,0.00030136,2]
[311080938,1704899470467,-500.0,0.00030136,2]
[311080939,1704899470476,-500.0,0.00030136,2]
[311080940,1704899470486,-1910.26,0.00030136,2]
[311080941,1704899470495,-500.0,0.00030136,2]
[311080942,1704899470505,-500.0,0.00030136,2]
[311080943,1704899470514,-500.0,0.00030136,2]
[311080944,1704899470524,-500.0,0.00030136,2]
[311080945,1704899470533,-500.0,0.00030136,2]
[311080946,1704899470544,-3312.66,0.00030136,2]
[311080947,1704899470554,-500.0,0.00030136,2]
[311080948,1704899470563,-2436.46,0.00030137,2]
[311080949,1704899470576,-153.84,0.00030137,2]
[311080950,1704899470585,-396.72,0.00030142,2]
[311080951,1704899470596,-8750.0,0.00030275,2]
[311080952,1704899470605,-874.81285064,0.00030284,2]
[311080953,1704899470614,-500.0,0.00030287,2]
[311080954,1704899470624,-40402.9618334,0.00030389,2]
[311080955,1704899470633,-2218.9313667,0.00030389,2]
[311080956,1704899470643,-537.94,0.0003041,2]
[311080957,1704899470653,-649.73,0.0003041,2]
[311080958,1704899470662,-500.0,0.0003041,2]
[311080959,1704899470672,-500.0,0.0003041,2]
[311080960,1704899470682,-500.0,0.0003041,2]
[311080961,1704899470693,-500.0,0.0003041,2]
[311080962,1704899470709,-500.0,0.0003041,2]
[311080963,1704899470719,-500.0,0.0003041,2]
[311080964,1704899470729,-750.51,0.0003041,2]
[311080965,1704899470739,-500.0,0.0003041,2]
[311080966,1704899470748,-500.0,0.0003041,2]
[311080967,1704899470758,-500.0,0.0003041,2]
[311080968,1704899470768,-500.0,0.0003041,2]
[311080969,1704899470777,-202.78123974,0.0003041,2]
[311080970,1704899470787,-500.0,0.0003041,2]
[311080971,1704899470797,-500.0,0.0003041,2]
[311080972,1704899470807,-500.0,0.0003041,2]
[311080973,1704899470816,-228.25863754,0.0003041,2]
[311080974,1704899470829,-500.0,0.0003041,2]
[311080975,1704899470838,-848.53,0.0003041,2]
[311080976,1704899470847,-500.0,0.0003041,2]
[311080977,1704899470857,-500.0,0.0003041,2]
[311080978,1704899470867,-500.0,0.0003041,2]
[311080979,1704899470877,-500.0,0.0003041,2]
[311080980,1704899470887,-500.0,0.0003041,2]
[311080981,1704899470897,-500.0,0.0003041,2]
[311080982,1704899470911,-500.0,0.0003041,2]
[311080983,1704899470921,-500.0,0.0003041,2]
[311080984,1704899470930,-707.62,0.0003041,2]
[311080985,1704899470939,-500.0,0.0003041,2]
[311080986,1704899470951,-500.0,0.0003041,2]
[311080987,1704899470960,-500.0,0.0003041,2]
[311080988,1704899470970,-500.0,0.0003041,2]
[311080989,1704899470980,-500.0,0.0003041,2]
[311080990,1704899470990,-589.9,0.0003041,2]
[311080991,1704899471000,-500.0,0.0003041,2]
[311080992,1704899471010,-500.0,0.0003041,2]
[311080993,1704899471020,-500.0,0.0003041,2]
[311080994,1704899471029,-500.0,0.0003041,2]
[311080995,1704899471038,-500.0,0.0003041,2]
[311080996,1704899471048,-500.0,0.0003041,2]
[311080997,1704899471058,-500.0,0.0003041,2]
[311080998,1704899471067,-500.0,0.0003041,2]
[311080999,1704899471081,-500.0,0.0003041,2]
[311081000,1704899471091,-731.08,0.0003041,2]
[311081001,1704899471100,-500.0,0.0003041,2]
[311081002,1704899471110,-500.0,0.0003041,2]
[311081003,1704899471120,-500.0,0.0003041,2]
[311081004,1704899471129,-500.0,0.0003041,2]
[311081005,1704899471139,-500.0,0.0003041,2]
[311081006,1704899471148,-500.0,0.0003041,2]
[311081007,1704899471158,-647.15,0.0003041,2]
[311081008,1704899471167,-500.0,0.0003041,2]
[311081009,1704899471177,-500.0,0.0003041,2]
[311081010,1704899471186,-500.0,0.0003041,2]
[311081011,1704899471195,-500.0,0.0003041,2]
[311081012,1704899471205,-500.0,0.0003041,2]
[311081013,1704899471214,-500.0,0.0003041,2]
[311081014,1704899471223,-500.0,0.0003041,2]
[311081015,1704899471233,-500.0,0.0003041,2]
[311081016,1704899471243,-500.0,0.0003041,2]
[311081017,1704899471252,-500.0,0.0003041,2]
[311081018,1704899471262,-500.0,0.0003041,2]
[311081019,1704899471271,-422.53574605,0.0003041,2]
[311081020,1704899471281,-500.0,0.0003041,2]
[311081021,1704899471290,-500.0,0.0003041,2]
[311081022,1704899471300,-500.0,0.0003041,2]
[311081023,1704899471309,-500.0,0.0003041,2]
[311081024,1704899471319,-500.0,0.0003041,2]
[311081025,1704899471332,-500.0,0.0003041,2]
[311081026,1704899471342,-500.0,0.0003041,2]
[311081027,1704899471351,-500.0,0.0003041,2]
[311081028,1704899471361,-500.0,0.0003041,2]
[311081029,1704899471370,-500.0,0.0003041,2]
[311081030,1704899471379,-500.0,0.0003041,2]
[311081031,1704899471389,-500.0,0.0003041,2]
[311081032,1704899471398,-500.0,0.0003041,2]
[311081033,1704899471407,-500.0,0.0003041,2]
[311081034,1704899471417,-500.0,0.0003041,2]
[311081035,1704899471426,-500.0,0.0003041,2]
[311081036,1704899471435,-500.0,0.0003041,2]
[311081037,1704899471445,-500.0,0.0003041,2]
[311081038,1704899471454,-500.0,0.0003041,2]
[311081039,1704899471464,-500.0,0.0003041,2]
[311081040,1704899471474,-500.0,0.0003041,2]
[311081041,1704899471483,-500.0,0.0003041,2]
[311081042,1704899471492,-500.0,0.0003041,2]
[311081043,1704899471502,-500.0,0.0003041,2]
[311081044,1704899471511,-500.0,0.0003041,2]
[311081045,1704899471521,-500.0,0.0003041,2]
[311081046,1704899471530,-801.03,0.0003041,2]
[311081047,1704899471539,-500.0,0.0003041,2]
[311081048,1704899471549,-500.0,0.0003041,2]
[311081049,1704899471558,-500.0,0.0003041,2]
[311081050,1704899471568,-500.0,0.0003041,2]
[311081051,1704899471582,-500.0,0.0003041,2]
[311081052,1704899471591,-500.0,0.0003041,2]
[311081053,1704899471601,-500.0,0.0003041,2]
[311081054,1704899471610,-508.53,0.0003041,2]
[311081055,1704899471619,-500.0,0.0003041,2]
[311081056,1704899471628,-500.0,0.0003041,2]
[311081057,1704899471638,-554.83,0.0003041,2]
[311081058,1704899471647,-500.0,0.0003041,2]
[311081059,1704899471656,-500.0,0.0003041,2]
[311081060,1704899471665,-500.0,0.0003041,2]
[311081061,1704899471674,-500.0,0.0003041,2]
[311081062,1704899471683,-500.0,0.0003041,2]
[311081063,1704899471692,-1055.45,0.0003041,2]
[311081064,1704899471710,-500.0,0.0003041,2]
[311081065,1704899471719,-500.0,0.0003041,2]
[311081066,1704899471728,-500.0,0.0003041,2]
[311081067,1704899471737,-500.0,0.0003041,2]
[311081068,1704899471746,-500.0,0.0003041,2]
[311081069,1704899471756,-500.0,0.0003041,2]
[311081070,1704899471765,-500.0,0.0003041,2]
[311081071,1704899471775,-500.0,0.0003041,2]
[311081072,1704899471785,-500.0,0.0003041,2]
[311081073,1704899471795,-500.0,0.0003041,2]
[311081074,1704899471805,-500.0,0.0003041,2]
[311081075,1704899471815,-500.0,0.0003041,2]
[311081076,1704899471827,-929.7,0.0003041,2]
[311081077,1704899471836,-1830.67,0.0003041,2]
[311081078,1704899471845,-500.0,0.0003041,2]
[311081079,1704899471853,-500.0,0.0003041,2]
[311081080,1704899471863,-500.0,0.0003041,2]
[311081081,1704899471872,-734.65,0.0003041,2]
[311081082,1704899471881,-500.0,0.0003041,10]
[311081083,1704899471890,-500.0,0.0003041,2]